[Event "Fast Chess"]
[Site "ChessKid.com"]
[Date "2020.04.02"]
[Round "2"]
[White "Hessenberger, Oliver"]
[Black "Sasse, Gabriel"]
[Result "0-1"]
[ECO "C55"]
[WhiteElo "1154"]
[BlackElo "1188"]
[PlyCount "32"]
[EventDate "2020.??.??"]
[TimeControl "600"]
[WhiteClock "0:08:45"]
[BlackClock "0:08:04"]

1. e4 {[%emt 0:00:17]} e5 {[%emt 0:00:00]} 2. Nf3 {[%emt 0:00:03]} Nc6 {
[%emt 0:00:01]} 3. Nc3 {[%emt 0:00:03]} Bc5 {[%emt 0:00:01]} 4. Bc4 {[%emt 0:
00:06]} Nf6 {[%emt 0:00:01]} 5. Ng5 {[%emt 0:00:02]} O-O {[%emt 0:00:02]} 6.
Bb5 {[%emt 0:00:08]} h6 {[%emt 0:00:02]} 7. Nf3 {[%emt 0:00:05]} a6 {[%emt 0:
00:02]} 8. Bxc6 {[%emt 0:00:03]} dxc6 {[%emt 0:00:01]} 9. Nxe5 {[%emt 0:00:08]}
Qd4 {[%emt 0:00:06]} 10. Qe2 {[%emt 0:00:17]} Qxe5 {[%emt 0:00:05]} 11. O-O {
[%emt 0:00:06]} Bd6 {[%emt 0:00:03]} 12. g3 {[%emt 0:00:04]} Bg4 {[%emt 0:00:
05]} 13. Qe3 {[%emt 0:00:13]} Bc5 {[%emt 0:00:04]} 14. Qd3 {[%emt 0:00:06]}
Rae8 {[%emt 0:00:07]} 15. Re1 {[%emt 0:00:06]} Rd8 {[%emt 0:00:22]} 16. Qc4 {
[%emt 0:00:09]} Nd7 {[%emt 0:00:14] LimeFarActor won by resignation} 0-1

[Event "Fast Chess"]
[Site "ChessKid.com"]
[Date "2020.04.02"]
[Round "3"]
[White "Sasse, Gabriel"]
[Black "Li, Tobias"]
[Result "0-1"]
[ECO "C50"]
[WhiteElo "1180"]
[BlackElo "1207"]
[PlyCount "112"]
[EventDate "2020.??.??"]
[TimeControl "600"]
[WhiteClock "0:06:48"]
[BlackClock "0:06:14"]

1. e4 {[%emt 0:01:32]} e5 {[%emt 0:00:02]} 2. Nf3 {[%emt 0:00:01]} Nc6 {
[%emt 0:00:02]} 3. Bc4 {[%emt 0:00:00]} Bc5 {[%emt 0:00:04]} 4. Ng5 {[%emt 0:
00:02]} Qxg5 {[%emt 0:00:03]} 5. d3 {[%emt 0:00:03]} Qd8 {[%emt 0:00:04]} 6.
Qf3 {[%emt 0:00:05]} Nf6 {[%emt 0:00:08]} 7. Bg5 {[%emt 0:00:03]} d6 {[%emt 0:
00:18]} 8. Bxf6 {[%emt 0:00:03]} Qxf6 {[%emt 0:00:02]} 9. Qxf6 {[%emt 0:00:02]}
gxf6 {[%emt 0:00:01]} 10. O-O {[%emt 0:00:01]} Bd7 {[%emt 0:00:02]} 11. Nc3 {
[%emt 0:00:01]} O-O-O {[%emt 0:00:02]} 12. Na4 {[%emt 0:00:10]} Be6 {[%emt 0:
00:14]} 13. Bxe6+ {[%emt 0:00:02]} fxe6 {[%emt 0:00:02]} 14. Nxc5 {[%emt 0:00:
01]} dxc5 {[%emt 0:00:12]} 15. c3 {[%emt 0:00:01]} f5 {[%emt 0:00:03]} 16. exf5
{[%emt 0:00:03]} exf5 {[%emt 0:00:01]} 17. b4 {[%emt 0:00:06]} cxb4 {[%emt 0:
00:02]} 18. cxb4 {[%emt 0:00:02]} Nxb4 {[%emt 0:00:02]} 19. Rab1 {[%emt 0:00:
02]} Nxd3 {[%emt 0:00:02]} 20. Rfd1 {[%emt 0:00:09]} Nf4 {[%emt 0:00:08]} 21.
Rdc1 {[%emt 0:00:03]} Nd3 {[%emt 0:00:05]} 22. Rc3 {[%emt 0:00:08]} b6 {
[%emt 0:00:08]} 23. Rd1 {[%emt 0:00:04]} e4 {[%emt 0:00:04]} 24. f3 {[%emt 0:
00:04]} Rd4 {[%emt 0:00:06]} 25. fxe4 {[%emt 0:00:02]} fxe4 {[%emt 0:00:03]}
26. Rdc1 {[%emt 0:00:01]} Rd7 {[%emt 0:00:06]} 27. Rd1 {[%emt 0:00:07]} Rhd8 {
[%emt 0:00:05]} 28. Kf1 {[%emt 0:00:03]} Nb4 {[%emt 0:00:04]} 29. Rxd7 {
[%emt 0:00:02]} Rxd7 {[%emt 0:00:02]} 30. Rc4 {[%emt 0:00:01]} Nxa2 {[%emt 0:
00:04]} 31. Rxe4 {[%emt 0:00:02]} Nc3 {[%emt 0:00:03]} 32. Re8+ {[%emt 0:00:02]
} Rd8 {[%emt 0:00:01]} 33. Rxd8+ {[%emt 0:00:01]} Kxd8 {[%emt 0:00:01]} 34. Kf2
{[%emt 0:00:01]} a5 {[%emt 0:00:02]} 35. g4 {[%emt 0:00:01]} Nd5 {[%emt 0:00:
03]} 36. h4 {[%emt 0:00:02]} a4 {[%emt 0:00:02]} 37. Kf3 {[%emt 0:00:01]} a3 {
[%emt 0:00:00]} 38. Ke4 {[%emt 0:00:01]} a2 {[%emt 0:00:00]} 39. Kxd5 {[%emt 0:
00:01]} a1=Q {[%emt 0:00:01]} 40. g5 {[%emt 0:00:01]} Qg7 {[%emt 0:00:03]} 41.
Ke4 {[%emt 0:00:05]} b5 {[%emt 0:00:05]} 42. Kf5 {[%emt 0:00:01]} c5 {[%emt 0:
00:02]} 43. h5 {[%emt 0:00:01]} b4 {[%emt 0:00:01]} 44. h6 {[%emt 0:00:01]}
Qf7+ {[%emt 0:00:03]} 45. Kg4 {[%emt 0:00:01]} c4 {[%emt 0:00:01]} 46. g6 {
[%emt 0:00:03]} Qxg6+ {[%emt 0:00:01]} 47. Kh4 {[%emt 0:00:01]} c3 {[%emt 0:00:
01]} 48. Kh3 {[%emt 0:00:02]} Qg5 {[%emt 0:00:02]} 49. Kh2 {[%emt 0:00:01]} Qg4
{[%emt 0:00:01]} 50. Kh1 {[%emt 0:00:01]} b3 {[%emt 0:00:00]} 51. Kh2 {[%emt 0:
00:02]} c2 {[%emt 0:00:01]} 52. Kh1 {[%emt 0:00:01]} b2 {[%emt 0:00:06]} 53.
Kh2 {[%emt 0:00:02]} Qf3 {[%emt 0:00:01]} 54. Kg1 {[%emt 0:00:02]} c1=Q+ {
[%emt 0:00:04]} 55. Kh2 {[%emt 0:00:01]} Qc2+ {[%emt 0:00:04]} 56. Kg1 {
[%emt 0:00:04]} Qfd1# {[%emt 0:00:02] OnlyHungryKiwi won by checkmate} 0-1

[Event "Fast Chess"]
[Site "ChessKid.com"]
[Date "2020.04.02"]
[Round "3"]
[White "Dai, Lana"]
[Black "Hessenberger, Oliver"]
[Result "1-0"]
[ECO "C28"]
[WhiteElo "1220"]
[BlackElo "1134"]
[PlyCount "45"]
[EventDate "2020.??.??"]
[TimeControl "600"]
[WhiteClock "0:07:14"]
[BlackClock "0:07:34"]

1. e4 {[%emt 0:00:00]} e5 {[%emt 0:00:00]} 2. Nf3 {[%emt 0:00:03]} Nc6 {
[%emt 0:00:01]} 3. Bc4 {[%emt 0:00:02]} Nf6 {[%emt 0:00:01]} 4. Nc3 {[%emt 0:
00:02]} Bb4 {[%emt 0:00:03]} 5. d3 {[%emt 0:00:06]} Bxc3+ {[%emt 0:00:01]} 6.
bxc3 {[%emt 0:00:02]} O-O {[%emt 0:00:01]} 7. Bg5 {[%emt 0:00:02]} d6 {[%emt 0:
00:06]} 8. h3 {[%emt 0:00:04]} h6 {[%emt 0:00:05]} 9. Bh4 {[%emt 0:00:05]} Be6
{[%emt 0:00:12]} 10. Bxe6 {[%emt 0:00:06]} fxe6 {[%emt 0:00:02]} 11. d4 {
[%emt 0:00:08]} exd4 {[%emt 0:00:06]} 12. cxd4 {[%emt 0:00:02]} d5 {[%emt 0:00:
04]} 13. e5 {[%emt 0:00:06]} Nb4 {[%emt 0:00:14]} 14. exf6 {[%emt 0:00:08]}
gxf6 {[%emt 0:00:05]} 15. c3 {[%emt 0:00:07]} Nc6 {[%emt 0:00:04]} 16. O-O {
[%emt 0:00:12]} e5 {[%emt 0:00:02]} 17. dxe5 {[%emt 0:00:07]} Qe8 {[%emt 0:00:
29]} 18. Bxf6 {[%emt 0:00:07]} Qe6 {[%emt 0:00:06]} 19. Qd3 {[%emt 0:00:07]}
Qf7 {[%emt 0:00:20]} 20. Rae1 {[%emt 0:00:22]} Rae8 {[%emt 0:00:16]} 21. Qd2 {
[%emt 0:00:21]} Nb8 {[%emt 0:00:23]} 22. Qxh6 {[%emt 0:00:04]} Nd7 {[%emt 0:00:
06]} 23. Qh8# {[%emt 0:00:03] TopBrownCave won by checkmate} 1-0

[Event "Fast Chess"]
[Site "ChessKid.com"]
[Date "2020.04.03"]
[Round "1"]
[White "Sasse, Gabriel"]
[Black "Georgiev, Maximilian"]
[Result "1-0"]
[ECO "C50"]
[WhiteElo "1227"]
[BlackElo "1355"]
[PlyCount "43"]
[EventDate "2020.??.??"]
[TimeControl "900"]
[WhiteClock "0:13:45"]
[BlackClock "0:13:26"]

1. e4 {[%emt 0:00:00]} e5 {[%emt 0:00:01]} 2. Nf3 {[%emt 0:00:01]} Nc6 {
[%emt 0:00:01]} 3. Bc4 {[%emt 0:00:01]} h6 {[%emt 0:00:02]} 4. h3 {[%emt 0:00:
01]} Nf6 {[%emt 0:00:02]} 5. Nc3 {[%emt 0:00:01]} Bb4 {[%emt 0:00:02]} 6. O-O {
[%emt 0:00:02]} Bxc3 {[%emt 0:00:02]} 7. dxc3 {[%emt 0:00:01]} Nxe4 {[%emt 0:
00:02]} 8. Qd5 {[%emt 0:00:05]} Nf6 {[%emt 0:00:02]} 9. Qd1 {[%emt 0:00:06]}
O-O {[%emt 0:00:06]} 10. Bb5 {[%emt 0:00:02]} a6 {[%emt 0:00:03]} 11. Bxc6 {
[%emt 0:00:01]} bxc6 {[%emt 0:00:03]} 12. Nxe5 {[%emt 0:00:01]} d6 {[%emt 0:00:
04]} 13. Nxc6 {[%emt 0:00:02]} Qd7 {[%emt 0:00:04]} 14. Nd4 {[%emt 0:00:03]}
Bb7 {[%emt 0:00:06]} 15. Qd3 {[%emt 0:00:18]} c5 {[%emt 0:00:05]} 16. Nb3 {
[%emt 0:00:06]} Rfe8 {[%emt 0:00:04]} 17. Qg3 {[%emt 0:00:02]} Bd5 {[%emt 0:00:
06]} 18. Bxh6 {[%emt 0:00:05]} g6 {[%emt 0:00:05]} 19. Rae1 {[%emt 0:00:22]}
Rxe1 {[%emt 0:00:04]} 20. Rxe1 {[%emt 0:00:02]} Ne4 {[%emt 0:00:06]} 21. Qf3 {
[%emt 0:00:08]} Nf6 {[%emt 0:00:06]} 22. Qxf6 {[%emt 0:00:05] LimeFarActor won
by resignation} 1-0

[Event "Fast Chess"]
[Site "ChessKid.com"]
[Date "2020.04.03"]
[Round "1"]
[White "Li, Patrick"]
[Black "Li, Tobias"]
[Result "0-1"]
[ECO "C55"]
[WhiteElo "914"]
[BlackElo "1224"]
[PlyCount "34"]
[EventDate "2020.??.??"]
[TimeControl "900"]
[WhiteClock "0:14:12"]
[BlackClock "0:13:52"]

1. e4 {[%emt 0:00:15]} e5 {[%emt 0:00:03]} 2. Nf3 {[%emt 0:00:00]} Nc6 {
[%emt 0:00:02]} 3. Nc3 {[%emt 0:00:00]} Nf6 {[%emt 0:00:02]} 4. Bc4 {[%emt 0:
00:03]} h6 {[%emt 0:00:03]} 5. Ng5 {[%emt 0:00:00]} hxg5 {[%emt 0:00:02]} 6.
O-O {[%emt 0:00:04]} Bc5 {[%emt 0:00:01]} 7. h3 {[%emt 0:00:09]} d6 {[%emt 0:
00:04]} 8. Nd5 {[%emt 0:00:04]} Nxd5 {[%emt 0:00:03]} 9. exd5 {[%emt 0:00:03]}
Na5 {[%emt 0:00:01]} 10. Qh5 {[%emt 0:00:03]} Rxh5 {[%emt 0:00:09]} 11. d3 {
[%emt 0:00:05]} Nxc4 {[%emt 0:00:03]} 12. Bxg5 {[%emt 0:00:05]} Qxg5 {[%emt 0:
00:02]} 13. dxc4 {[%emt 0:00:02]} Bxh3 {[%emt 0:00:01]} 14. g3 {[%emt 0:00:11]}
Bxf1 {[%emt 0:00:01]} 15. Rxf1 {[%emt 0:00:02]} Qf5 {[%emt 0:00:08]} 16. Kg2 {
[%emt 0:00:00]} Qe4+ {[%emt 0:00:01]} 17. Kg1 {[%emt 0:00:02]} Qh1# {[%emt 0:
00:02] OnlyHungryKiwi won by checkmate} 0-1

[Event "Fast Chess"]
[Site "ChessKid.com"]
[Date "2020.04.03"]
[Round "2"]
[White "Rosenkranz, Benjamin"]
[Black "Sasse, Gabriel"]
[Result "0-1"]
[ECO "C50"]
[WhiteElo "1181"]
[BlackElo "1234"]
[PlyCount "88"]
[EventDate "2020.??.??"]
[TimeControl "900"]
[WhiteClock "0:12:26"]
[BlackClock "0:08:19"]

1. e4 {[%emt 0:00:02]} e5 {[%emt 0:00:00]} 2. Nf3 {[%emt 0:00:03]} Nc6 {
[%emt 0:00:01]} 3. Bc4 {[%emt 0:00:05]} Bc5 {[%emt 0:00:00]} 4. Nc3 {[%emt 0:
00:06]} Nf6 {[%emt 0:00:01]} 5. d3 {[%emt 0:00:02]} Ng4 {[%emt 0:00:01]} 6. O-O
{[%emt 0:00:09]} Qf6 {[%emt 0:00:09]} 7. Bg5 {[%emt 0:00:10]} Qg6 {[%emt 0:00:
05]} 8. Bd2 {[%emt 0:00:14]} Nf6 {[%emt 0:00:11]} 9. Bg5 {[%emt 0:00:25]} d6 {
[%emt 0:00:03]} 10. Bxf6 {[%emt 0:00:05]} Qxf6 {[%emt 0:00:02]} 11. Nd5 {
[%emt 0:00:12]} Qg6 {[%emt 0:00:08]} 12. Nxc7+ {[%emt 0:00:07]} Kd7 {[%emt 0:
00:03]} 13. Nxa8 {[%emt 0:00:03]} Ke7 {[%emt 0:00:01]} 14. Nc7 {[%emt 0:00:07]}
Bh3 {[%emt 0:00:03]} 15. Nd5+ {[%emt 0:00:38]} Kd7 {[%emt 0:00:09]} 16. Ng5 {
[%emt 0:00:27]} Qxg5 {[%emt 0:00:03]} 17. Qf3 {[%emt 0:00:05]} Bg4 {[%emt 0:00:
04]} 18. Qf5+ {[%emt 0:00:28]} Bxf5 {[%emt 0:00:14]} 19. exf5 {[%emt 0:00:03]}
Qxf5 {[%emt 0:00:05]} 20. Bb5 {[%emt 0:00:18]} a6 {[%emt 0:00:03]} 21. Bxc6+ {
[%emt 0:00:03]} bxc6 {[%emt 0:00:02]} 22. Ne3 {[%emt 0:00:04]} Qg5 {[%emt 0:00:
07]} 23. Rad1 {[%emt 0:00:11]} Qh5 {[%emt 0:00:02]} 24. g4 {[%emt 0:00:26]} Qh4
{[%emt 0:00:09]} 25. c3 {[%emt 0:00:21]} d5 {[%emt 0:00:02]} 26. d4 {[%emt 0:
00:04]} exd4 {[%emt 0:00:02]} 27. cxd4 {[%emt 0:00:03]} Bd6 {[%emt 0:00:01]}
28. Rfe1 {[%emt 0:00:12]} Qxh2+ {[%emt 0:00:04]} 29. Kf1 {[%emt 0:00:04]} Qh1+
{[%emt 0:00:02]} 30. Ke2 {[%emt 0:00:03]} Qh4 {[%emt 0:00:03]} 31. Nf5 {
[%emt 0:00:24]} Qxg4+ {[%emt 0:00:03]} 32. f3 {[%emt 0:00:06]} Qxf5 {[%emt 0:
00:04]} 33. Kd2 {[%emt 0:00:06]} Bb4+ {[%emt 0:00:07]} 34. Ke2 {[%emt 0:00:08]}
Re8+ {[%emt 0:00:03]} 35. Kf2 {[%emt 0:00:06]} Bxe1+ {[%emt 0:00:02]} 36. Rxe1
{[%emt 0:00:05]} Rxe1 {[%emt 0:00:02]} 37. Kxe1 {[%emt 0:00:02]} Qxf3 {[%emt 0:
00:02]} 38. Kd2 {[%emt 0:00:04]} h5 {[%emt 0:00:01]} 39. Ke1 {[%emt 0:00:04]}
h4 {[%emt 0:00:01]} 40. Kd2 {[%emt 0:00:01]} h3 {[%emt 0:00:01]} 41. Ke1 {
[%emt 0:00:01]} h2 {[%emt 0:00:02]} 42. Kd2 {[%emt 0:00:01]} h1=Q {[%emt 0:00:
02]} 43. Kc2 {[%emt 0:00:03]} Qhg2+ {[%emt 0:00:02]} 44. Kc1 {[%emt 0:00:10]}
Qff1# {[%emt 0:00:02] LimeFarActor won by checkmate} 0-1

[Event "Fast Chess"]
[Site "ChessKid.com"]
[Date "2020.04.03"]
[Round "2"]
[White "Georgiev, Maximilian"]
[Black "Li, Tobias"]
[Result "1/2-1/2"]
[ECO "C50"]
[WhiteElo "1352"]
[BlackElo "1229"]
[PlyCount "91"]
[EventDate "2020.??.??"]
[TimeControl "900"]
[WhiteClock "0:10:29"]
[BlackClock "0:11:32"]

1. e4 {[%emt 0:00:00]} e5 {[%emt 0:00:06]} 2. Nf3 {[%emt 0:00:01]} Nc6 {
[%emt 0:00:02]} 3. Bc4 {[%emt 0:00:02]} Bc5 {[%emt 0:00:08]} 4. d3 {[%emt 0:00:
05]} h6 {[%emt 0:00:01]} 5. Nc3 {[%emt 0:00:06]} Nf6 {[%emt 0:00:00]} 6. O-O {
[%emt 0:00:03]} O-O {[%emt 0:00:01]} 7. h3 {[%emt 0:00:02]} d6 {[%emt 0:00:01]}
8. a3 {[%emt 0:00:03]} a6 {[%emt 0:00:07]} 9. Nd5 {[%emt 0:00:07]} b5 {[%emt 0:
00:05]} 10. Nxf6+ {[%emt 0:00:02]} Qxf6 {[%emt 0:00:03]} 11. Bd5 {[%emt 0:00:
04]} Bd7 {[%emt 0:00:04]} 12. Bd2 {[%emt 0:00:07]} Rab8 {[%emt 0:00:10]} 13. b4
{[%emt 0:00:08]} Ba7 {[%emt 0:00:04]} 14. Bxc6 {[%emt 0:00:08]} Bxc6 {[%emt 0:
00:02]} 15. c3 {[%emt 0:00:02]} Rfe8 {[%emt 0:00:13]} 16. Re1 {[%emt 0:00:03]}
d5 {[%emt 0:00:08]} 17. exd5 {[%emt 0:00:02]} Bxd5 {[%emt 0:00:01]} 18. d4 {
[%emt 0:00:09]} exd4 {[%emt 0:00:06]} 19. Rxe8+ {[%emt 0:00:03]} Rxe8 {[%emt 0:
00:02]} 20. cxd4 {[%emt 0:00:02]} Bxd4 {[%emt 0:00:02]} 21. Nxd4 {[%emt 0:00:
02]} Qxd4 {[%emt 0:00:06]} 22. Rc1 {[%emt 0:00:07]} Qe5 {[%emt 0:00:16]} 23.
Bc3 {[%emt 0:00:08]} Qe4 {[%emt 0:00:03]} 24. f3 {[%emt 0:00:04]} Qg6 {[%emt 0:
00:05]} 25. Bb2 {[%emt 0:00:06]} Be6 {[%emt 0:00:01]} 26. Kh1 {[%emt 0:00:05]}
Bc4 {[%emt 0:00:23]} 27. Qd4 {[%emt 0:00:12]} Qg3 {[%emt 0:00:05]} 28. Bc3 {
[%emt 0:00:20]} Kh8 {[%emt 0:00:41]} 29. Be1 {[%emt 0:00:09]} Rxe1+ {[%emt 0:
00:10]} 30. Rxe1 {[%emt 0:00:07]} Qxe1+ {[%emt 0:00:02]} 31. Kh2 {[%emt 0:00:
02]} Qe6 {[%emt 0:00:05]} 32. Qd8+ {[%emt 0:00:05]} Kh7 {[%emt 0:00:04]} 33.
Qxc7 {[%emt 0:00:01]} Bf1 {[%emt 0:00:06]} 34. Kg1 {[%emt 0:00:04]} Qe2 {
[%emt 0:00:02]} 35. Qg3 {[%emt 0:00:09]} f5 {[%emt 0:00:07]} 36. f4 {[%emt 0:
00:03]} g6 {[%emt 0:00:03]} 37. h4 {[%emt 0:00:04]} h5 {[%emt 0:00:01]} 38. Qh3
{[%emt 0:00:06]} Kh6 {[%emt 0:00:06]} 39. Qg3 {[%emt 0:00:03]} Qd3 {[%emt 0:00:
25]} 40. Qg5+ {[%emt 0:00:05]} Kg7 {[%emt 0:00:02]} 41. Qe7+ {[%emt 0:00:02]}
Kh6 {[%emt 0:00:02]} 42. Qg5+ {[%emt 0:00:02]} Kh7 {[%emt 0:00:04]} 43. Qe7+ {
[%emt 0:00:02]} Kh8 {[%emt 0:00:01]} 44. Qf8+ {[%emt 0:00:02]} Kh7 {[%emt 0:00:
03]} 45. Qe7+ {[%emt 0:00:01]} Kh6 {[%emt 0:00:03]} 46. Qg5+ {[%emt 0:00:01]
Game drawn by repetition} 1/2-1/2

[Event "Fast Chess"]
[Site "ChessKid.com"]
[Date "2020.04.03"]
[Round "2"]
[White "Hlinka, Patricia"]
[Black "Horvath, Alexander"]
[Result "0-1"]
[ECO "D00"]
[WhiteElo "1098"]
[BlackElo "1290"]
[PlyCount "34"]
[EventDate "2020.??.??"]
[TimeControl "900"]
[WhiteClock "0:13:06"]
[BlackClock "0:12:57"]

1. d4 {[%emt 0:00:00]} d5 {[%emt 0:00:02]} 2. c3 {[%emt 0:00:06]} Nc6 {[%emt 0:
00:03]} 3. a4 {[%emt 0:00:05]} Nf6 {[%emt 0:00:04]} 4. a5 {[%emt 0:00:06]} e6 {
[%emt 0:00:10]} 5. e3 {[%emt 0:00:05]} Bd6 {[%emt 0:00:09]} 6. Nf3 {[%emt 0:00:
11]} Bd7 {[%emt 0:00:05]} 7. Nfd2 {[%emt 0:00:07]} O-O {[%emt 0:00:11]} 8. Be2
{[%emt 0:00:11]} a6 {[%emt 0:00:11]} 9. O-O {[%emt 0:00:04]} e5 {[%emt 0:00:05]
} 10. dxe5 {[%emt 0:00:03]} Bxe5 {[%emt 0:00:05]} 11. h4 {[%emt 0:00:10]} Bd6 {
[%emt 0:00:04]} 12. h5 {[%emt 0:00:06]} h6 {[%emt 0:00:04]} 13. Bd3 {[%emt 0:
00:18]} Qe7 {[%emt 0:00:05]} 14. Qf3 {[%emt 0:00:01]} Qe5 {[%emt 0:00:04]} 15.
Re1 {[%emt 0:00:08]} Qh2+ {[%emt 0:00:08]} 16. Kf1 {[%emt 0:00:06]} Bg4 {
[%emt 0:00:22]} 17. Qg3 {[%emt 0:00:17]} Qh1# {[%emt 0:00:04] KeenOrangeTeeth
won by checkmate} 0-1

[Event "Fast Chess"]
[Site "ChessKid.com"]
[Date "2020.04.03"]
[Round "3"]
[White "Li, Tobias"]
[Black "Sasse, Gabriel"]
[Result "0-1"]
[ECO "C50"]
[WhiteElo "1217"]
[BlackElo "1242"]
[PlyCount "114"]
[EventDate "2020.??.??"]
[TimeControl "900"]
[WhiteClock "0:08:43"]
[BlackClock "0:00:01"]

1. e4 {[%emt 0:00:00]} e5 {[%emt 0:00:00]} 2. Nf3 {[%emt 0:00:02]} Nc6 {
[%emt 0:00:01]} 3. Nc3 {[%emt 0:00:01]} Bc5 {[%emt 0:00:01]} 4. Bc4 {[%emt 0:
00:05]} h6 {[%emt 0:00:04]} 5. Nxe5 {[%emt 0:00:07]} Nxe5 {[%emt 0:00:03]} 6.
d4 {[%emt 0:00:03]} Nxc4 {[%emt 0:00:07]} 7. dxc5 {[%emt 0:00:03]} d6 {[%emt 0:
00:03]} 8. cxd6 {[%emt 0:00:02]} Nxd6 {[%emt 0:00:01]} 9. O-O {[%emt 0:00:02]}
Qf6 {[%emt 0:00:06]} 10. Nd5 {[%emt 0:00:09]} Qd8 {[%emt 0:00:06]} 11. Qd3 {
[%emt 0:00:13]} Nf6 {[%emt 0:00:04]} 12. Nc3 {[%emt 0:00:08]} Nh7 {[%emt 0:00:
20]} 13. Nb5 {[%emt 0:00:25]} O-O {[%emt 0:00:21]} 14. Nxd6 {[%emt 0:00:05]}
cxd6 {[%emt 0:00:03]} 15. Rd1 {[%emt 0:00:04]} Qf6 {[%emt 0:00:04]} 16. Re1 {
[%emt 0:00:09]} Qg6 {[%emt 0:00:02]} 17. h3 {[%emt 0:00:06]} Bxh3 {[%emt 0:00:
02]} 18. Qxh3 {[%emt 0:00:02]} Rae8 {[%emt 0:00:04]} 19. Qf3 {[%emt 0:00:06]}
d5 {[%emt 0:00:09]} 20. e5 {[%emt 0:00:05]} f6 {[%emt 0:00:07]} 21. Bd2 {
[%emt 0:00:07]} fxe5 {[%emt 0:00:11]} 22. Qxd5+ {[%emt 0:00:03]} Kh8 {[%emt 0:
00:05]} 23. Rxe5 {[%emt 0:00:02]} Qf6 {[%emt 0:00:17]} 24. Rxe8 {[%emt 0:00:35]
} Rxe8 {[%emt 0:00:05]} 25. Qxb7 {[%emt 0:00:13]} Rf8 {[%emt 0:00:05]} 26. Qxa7
{[%emt 0:00:10]} Qxb2 {[%emt 0:00:11]} 27. Rc1 {[%emt 0:00:04]} Qf6 {[%emt 0:
00:11]} 28. Qc5 {[%emt 0:00:18]} Rd8 {[%emt 0:00:07]} 29. Ba5 {[%emt 0:00:10]}
Rf8 {[%emt 0:00:17]} 30. Qe3 {[%emt 0:00:17]} Qa6 {[%emt 0:01:59]} 31. Bb4 {
[%emt 0:00:36]} Rb8 {[%emt 0:00:07]} 32. Bd6 {[%emt 0:09:56]} Qxd6 {[%emt 0:00:
06]} 33. Qf3 {[%emt 0:00:05]} Rf8 {[%emt 0:00:02]} 34. Qb3 {[%emt 0:00:03]} Qf4
{[%emt 0:00:04]} 35. Qe3 {[%emt 0:00:05]} Qxe3 {[%emt 0:00:04]} 36. fxe3 {
[%emt 0:00:01]} Ng5 {[%emt 0:00:02]} 37. Rf1 {[%emt 0:00:03]} Rxf1+ {[%emt 0:
00:03]} 38. Kxf1 {[%emt 0:00:01]} Ne4 {[%emt 0:00:01]} 39. Ke2 {[%emt 0:00:01]}
Nc3+ {[%emt 0:00:02]} 40. Kd2 {[%emt 0:00:01]} Nxa2 {[%emt 0:00:01]} 41. c4 {
[%emt 0:00:02]} Nb4 {[%emt 0:00:01]} 42. Kc3 {[%emt 0:00:01]} Na6 {[%emt 0:00:
01]} 43. Kd4 {[%emt 0:00:00]} Kg8 {[%emt 0:00:03]} 44. c5 {[%emt 0:00:01]} Nxc5
{[%emt 0:00:04]} 45. Kxc5 {[%emt 0:00:00]} Kf7 {[%emt 0:00:01]} 46. Kd4 {
[%emt 0:00:00]} Kf6 {[%emt 0:00:02]} 47. e4 {[%emt 0:00:01]} g5 {[%emt 0:00:01]
} 48. Ke3 {[%emt 0:00:01]} Kg6 {[%emt 0:00:04]} 49. Kf3 {[%emt 0:00:01]} h5 {
[%emt 0:00:01]} 50. g4 {[%emt 0:00:01]} hxg4+ {[%emt 0:00:01]} 51. Kxg4 {
[%emt 0:00:01]} Kf6 {[%emt 0:00:02]} 52. Kf3 {[%emt 0:00:01]} Kg6 {[%emt 0:00:
01]} 53. Ke3 {[%emt 0:00:01]} Kh5 {[%emt 0:00:01]} 54. Kf3 {[%emt 0:00:01]} Kh4
{[%emt 0:00:01]} 55. Kf2 {[%emt 0:00:01]} g4 {[%emt 0:00:01]} 56. Kg2 {[%emt 0:
00:01]} g3 {[%emt 0:00:02]} 57. Kg1 {[%emt 0:00:00]} Kh3 {[%emt 0:00:01]
LimeFarActor won on time} 0-1

[Event "Fast Chess"]
[Site "ChessKid.com"]
[Date "2020.04.03"]
[Round "3"]
[White "Horvath, Alexander"]
[Black "Li, Patrick"]
[Result "1-0"]
[ECO "C20"]
[WhiteElo "1293"]
[BlackElo "911"]
[PlyCount "29"]
[EventDate "2020.??.??"]
[TimeControl "900"]
[WhiteClock "0:12:19"]
[BlackClock "0:13:11"]

1. e4 {[%emt 0:00:00]} e5 {[%emt 0:00:01]} 2. Qh5 {[%emt 0:00:07]} Nc6 {
[%emt 0:00:03]} 3. Bc4 {[%emt 0:00:04]} g6 {[%emt 0:00:06]} 4. Qf3 {[%emt 0:00:
02]} Nf6 {[%emt 0:00:07]} 5. Qb3 {[%emt 0:00:05]} Nxe4 {[%emt 0:00:12]} 6. d3 {
[%emt 0:00:13]} Nd6 {[%emt 0:00:06]} 7. Nf3 {[%emt 0:00:09]} Na5 {[%emt 0:00:
08]} 8. Qc3 {[%emt 0:00:23]} b6 {[%emt 0:00:06]} 9. O-O {[%emt 0:00:12]} b5 {
[%emt 0:00:08]} 10. Qxe5+ {[%emt 0:00:13]} Be7 {[%emt 0:00:13]} 11. Qxh8+ {
[%emt 0:00:06]} Bf8 {[%emt 0:00:00]} 12. Re1+ {[%emt 0:00:04]} Qe7 {[%emt 0:00:
24]} 13. Rxe7+ {[%emt 0:00:03]} Kd8 {[%emt 0:00:05]} 14. Qxf8+ {[%emt 0:00:06]}
Ne8 {[%emt 0:01:02]} 15. Rxe8# {[%emt 0:00:02] KeenOrangeTeeth won by checkmate
} 1-0

[Event "Fast Chess"]
[Site "ChessKid.com"]
[Date "2020.04.03"]
[Round "3"]
[White "Rosenkranz, Benjamin"]
[Black "Georgiev, Maximilian"]
[Result "0-1"]
[ECO "C44"]
[WhiteElo "1177"]
[BlackElo "1357"]
[PlyCount "52"]
[EventDate "2020.??.??"]
[TimeControl "900"]
[WhiteClock "0:12:55"]
[BlackClock "0:10:12"]

1. e4 {[%emt 0:01:17]} e5 {[%emt 0:00:25]} 2. Nf3 {[%emt 0:00:04]} Nc6 {
[%emt 0:00:02]} 3. Qe2 {[%emt 0:00:03]} Nf6 {[%emt 0:00:03]} 4. Nc3 {[%emt 0:
00:04]} Bb4 {[%emt 0:00:04]} 5. Ng5 {[%emt 0:00:12]} O-O {[%emt 0:00:05]} 6.
Qe3 {[%emt 0:00:13]} Ng4 {[%emt 0:00:09]} 7. Qg3 {[%emt 0:00:38]} Qxg5 {
[%emt 0:00:04]} 8. d3 {[%emt 0:00:21]} Bxc3+ {[%emt 0:00:08]} 9. bxc3 {[%emt 0:
00:03]} Qg6 {[%emt 0:00:06]} 10. Be2 {[%emt 0:00:08]} d6 {[%emt 0:00:03]} 11.
Qxg4 {[%emt 0:00:08]} Bxg4 {[%emt 0:00:03]} 12. Bxg4 {[%emt 0:00:03]} Qxg4 {
[%emt 0:00:01]} 13. O-O {[%emt 0:00:02]} Qe2 {[%emt 0:00:04]} 14. Bg5 {[%emt 0:
00:10]} Qxc2 {[%emt 0:00:04]} 15. Rab1 {[%emt 0:00:06]} Qxd3 {[%emt 0:00:06]}
16. Rxb7 {[%emt 0:00:15]} Qxe4 {[%emt 0:00:02]} 17. Rxc7 {[%emt 0:00:07]} Rac8
{[%emt 0:00:08]} 18. Rxa7 {[%emt 0:00:06]} Nxa7 {[%emt 0:00:03]} 19. Be7 {
[%emt 0:00:05]} Rfe8 {[%emt 0:00:04]} 20. Bxd6 {[%emt 0:00:03]} Rxc3 {[%emt 0:
00:02]} 21. f3 {[%emt 0:00:24]} Qe3+ {[%emt 0:00:02]} 22. Kh1 {[%emt 0:00:02]}
Rc1 {[%emt 0:00:05]} 23. h3 {[%emt 0:00:06]} Rxf1+ {[%emt 0:00:02]} 24. Kh2 {
[%emt 0:00:01]} Qf4+ {[%emt 0:00:05]} 25. g3 {[%emt 0:00:04]} Qxf3 {[%emt 0:00:
03]} 26. h4 {[%emt 0:00:04]} Qh1# {[%emt 0:00:03] TallSnazzyBall won by
checkmate} 0-1